[Event "German Bundesliga 2024-25"]
[Site "Germany"]
[Date "2024.09.29"]
[Round "2.8"]
[White "Naumann, Alexander"]
[Black "Dordevic, Tom"]
[Result "1-0"]
[ECO "A14"]
[WhiteElo "2487"]
[BlackElo "2117"]
[Annotator "RC"]
[PlyCount "75"]
[EventDate "2024.09.27"]
[EventType "team-tourn"]
[EventCountry "GER"]
[SourceTitle "playchess.com"]
[Source "ChessBase"]
[SourceQuality "1"]
[WhiteTeam "SG Solingen"]
[BlackTeam "SV Muelheim Nord"]
[TimeControl "40/5400+30:1800+30"]

1. c4 {[%emt 0:00:02]} e6 {[%emt 0:00:16]} 2. g3 {[%emt 0:00:34]} Nf6 {[%emt 0:00:14]} 3. Bg2 {[%emt 0:00:06]} d5 {[%emt 0:00:06]} 4. Nf3 {[%emt 0:00:35]} Be7 {[%emt 0:00:09]} 5. O-O {[%emt 0:01:24]} O-O {[%emt 0:00:07]} 6. b3 {[%emt 0:00:08]} c5 {[%emt 0:00:12]} 7. Bb2 {[%emt 0:00:11]} d4 {[%emt 0:02:46]} 8. e3 {[%emt 0:01:20]} Nc6 {[%emt 0:00:32]} 9. exd4 {[%emt 0:00:10]} cxd4 {[%emt 0:00:14]} 10. Re1 {[%emt 0:02:29]} Re8 {[%emt 0:00:48]} 11. d3 {[%emt 0:11:12]} Bc5 {[%emt 0:05:41]} 12. Ba3 {[%emt 0:03:53]} Bxa3 {[%emt 0:00:54]} 13. Nxa3 {[%emt 0:00:02]} e5 {[%emt 0:00:45]} 14. Nc2 {[%emt 0:04:39]} a5 {[%emt 0:00:43]} 15. a3 {[%emt 0:01:23]} Bg4 {[%emt 0:12:15]} 16. h3 {[%emt 0:03:53]} Bh5 {[%emt 0:00:23]} 17. Qd2 {[%emt 0:01:39]} Qb6 {[%emt 0:09:56]} 18. Rab1 {[%emt 0:15:01]} Rad8 {[%emt 0:06:21]} 19. Ng5 {[%emt 0:06:17]} Bg6 {[%emt 0:02:29]} 20. b4 {[%emt 0:12:02]} h6 {[%emt 0:01:49]} 21. c5 {[%emt 0:04:16]} Qb5 {[%emt 0:13:38]} 22. Ne4 {[%emt 0:01:17]} Bxe4 {[%emt 0:04:18]} 23. dxe4 {[%emt 0:00:43]} a4 {[%emt 0:02:24]} 24. Rbd1 {[%emt 0:09:16]} d3 {[%emt 0:07:59]} 25. Ne3 {[%emt 0:01:01]} Nd4 {[%emt 0:00:43]} 26. Nd5 {[%emt 0:04:33]} Nxd5 {[%emt 0:00:39]} 27. exd5 {[%emt 0:00:13]} Nc2 {[%emt 0:01:12]} 28. Be4 {[%emt 0:01:56]} Nxe1 {[%emt 0:01:20]} 29. Rxe1 {[%emt 0:01:30]} Qc4 {[%emt 0:01:59]} 30. d6 {[%emt 0:00:35]} b6 {[%emt 0:07:10]} 31. Qxd3 {[%emt 0:00:55]} Qd4 {[%emt 0:03:57]} 32. Qxd4 {[%emt 0:03:06]} exd4 {[%emt 0:00:04]} 33. Kf1 {[%emt 0:04:59]} Kf8 {[%emt 0:02:57]} 34. Bb7 {[%emt 0:02:25]} d3 {[%emt 0:04:52]} 35. Rd1 {[%emt 0:00:45]} Rb8 {[%emt 0:03:49]} 36. c6 {[%emt 0:02:09]} Rxb7 {[%emt 0:04:11]} 37. cxb7 {[%emt 0:00:03]} Rb8 {[%emt 0:00:14]} 38. Rc1 {[%emt 0:01:41]} 1-0

[Event "German Bundesliga 2024-25"]
[Site "Germany"]
[Date "2024.09.29"]
[Round "2.9"]
[White "Gurel, Ediz"]
[Black "Erigaisi Arjun"]
[Result "1-0"]
[ECO "C64"]
[WhiteElo "2602"]
[BlackElo "2778"]
[Annotator "RC"]
[PlyCount "149"]
[EventDate "2024.09.27"]
[EventType "team-tourn"]
[EventCountry "GER"]
[SourceTitle "playchess.com"]
[Source "ChessBase"]
[SourceQuality "1"]
[WhiteTeam "SK Kirchweyhe"]
[BlackTeam "Duesseldorfer SK"]
[TimeControl "40/5400+30:1800+30"]

1. e4 {[%emt 0:00:04]} e5 {[%emt 0:00:07]} 2. Nf3 {[%emt 0:00:11]} Nc6 {[%emt 0:00:06]} 3. Bb5 {[%emt 0:00:11]} Bc5 {[%emt 0:00:07]} 4. c3 {[%emt 0:03:16]} Nf6 {[%emt 0:00:15]} 5. d4 {[%emt 0:07:34]} exd4 {[%emt 0:00:39]} 6. e5 {[%emt 0:02:45]} Nd5 {[%emt 0:00:08]} 7. O-O {[%emt 0:03:08]} Be7 {[%emt 0:00:15]} 8. cxd4 {[%emt 0:02:33]} d6 {[%emt 0:00:27]} 9. Nc3 {[%emt 0:05:29]} Be6 {[%emt 0:00:07]} 10. Ne4 {[%emt 0:13:50]} a6 {[%emt 0:06:27]} 11. Bxc6+ {[%emt 0:02:06]} bxc6 {[%emt 0:00:06]} 12. Bg5 {[%emt 0:00:51]} O-O {[%emt 0:07:35]} 13. Rc1 {[%emt 0:03:36]} h6 {[%emt 0:00:28]} 14. Bxe7 {[%emt 0:02:40]} Nxe7 {[%emt 0:00:06]} 15. Re1 {[%emt 0:04:18]} a5 {[%emt 0:08:05]} 16. b3 {[%emt 0:03:59]} Qd7 {[%emt 0:03:56]} 17. h3 {[%emt 0:01:35]} Nd5 {[%emt 0:06:13]} 18. Nfd2 {[%emt 0:06:46]} f5 {[%emt 0:08:16]} 19. exf6 {[%emt 0:03:22]} gxf6 {[%emt 0:02:39]} 20. Qf3 {[%emt 0:01:18]} f5 {[%emt 0:03:01]} 21. Ng3 {[%emt 0:01:47]} Rf6 {[%emt 0:11:42]} 22. Nh5 {[%emt 0:03:12]} Rg6 {[%emt 0:00:06]} 23. Nf4 {[%emt 0:03:28]} Nxf4 {[%emt 0:00:06]} 24. Qxf4 {[%emt 0:00:01]} Bd5 {[%emt 0:02:59]} 25. Nf3 {[%emt 0:00:57]} Rf8 {[%emt 0:07:48]} 26. Nh4 {[%emt 0:01:04]} Re6 {[%emt 0:00:28]} 27. Rxe6 {[%emt 0:01:34]} Qxe6 {[%emt 0:00:05]} 28. Nf3 {[%emt 0:00:40]} Qf6 {[%emt 0:07:54]} 29. Re1 {[%emt 0:01:11]} Rf7 {[%emt 0:01:27]} 30. Re3 {[%emt 0:04:39]} Kf8 {[%emt 0:01:37]} 31. Kh2 {[%emt 0:02:33]} Re7 {[%emt 0:03:06]} 32. Rxe7 {[%emt 0:00:38]} Kxe7 {[%emt 0:00:06]} 33. Nh4 {[%emt 0:04:10]} Be4 {[%emt 0:02:50]} 34. Nf3 {[%emt 0:04:22]} Kd7 {[%emt 0:05:48]} 35. Qe3 {[%emt 0:01:47]} Bd5 {[%emt 0:01:55]} 36. Ne1 {[%emt 0:01:46]} f4 {[%emt 0:00:34]} 37. Qd2 {[%emt 0:00:06]} h5 {[%emt 0:02:12]} 38. f3 {[%emt 0:01:53]} h4 {[%emt 0:01:55]} 39. Kg1 {[%emt 0:00:25]} Bf7 {[%emt 0:01:02]} 40. Kh2 {[%emt 0:03:08]} Bd5 {[%emt 0:04:16]} 41. Kg1 {[%emt 0:30:32]} Kc8 {[%emt 0:31:07]} 42. Nc2 {[%emt 0:00:00]} Kb7 {[%emt 0:00:00]} 43. Kh1 {[%emt 0:00:00]} Ka6 {[%emt 0:00:00]} 44. Na3 {[%emt 0:00:00]} Qf5 {[%emt 0:00:00]} 45. Kh2 {[%emt 0:00:00]} Be6 {[%emt 0:00:00]} 46. Qf2 {[%emt 0:00:00]} Qf6 {[%emt 0:00:00]} 47. Qd2 {[%emt 0:00:00]} Bf7 {[%emt 0:00:00]} 48. Nb1 {[%emt 0:00:00]} c5 {[%emt 0:00:00]} 49. Qe2+ {[%emt 0:00:00]} c4 {[%emt 0:00:00]} 50. Na3 {[%emt 0:00:00]} Qe6 {[%emt 0:00:00]} 51. Qc2 {[%emt 0:00:00]} d5 {[%emt 0:00:00]} 52. bxc4 {[%emt 0:00:00]} dxc4 {[%emt 0:00:00]} 53. Qa4 {[%emt 0:00:10]} c6 {[%emt 0:00:00]} 54. Nb1 {[%emt 0:00:58]} Qg6 {[%emt 0:02:04]} 55. Nc3 {[%emt 0:00:43]} Bd5 {[%emt 0:02:44]} 56. Nxd5 {[%emt 0:00:57]} cxd5 {[%emt 0:00:05]} 57. Qd7 {[%emt 0:00:02]} Kb6 {[%emt 0:00:50]} 58. Qxd5 {[%emt 0:01:33]} Qc6 {[%emt 0:00:35]} 59. Qd8+ {[%emt 0:00:04]} Qc7 {[%emt 0:00:09]} 60. Qf6+ {[%emt 0:00:07]} Kb5 {[%emt 0:00:31]} 61. Qf5+ {[%emt 0:02:22]} Kb4 {[%emt 0:00:05]} 62. Qf8+ {[%emt 0:00:37]} Kb5 {[%emt 0:02:20]} 63. d5 {[%emt 0:02:19]} Qd7 {[%emt 0:00:46]} 64. a4+ {[%emt 0:01:17]} Kxa4 {[%emt 0:00:06]} 65. Qc5 {[%emt 0:00:03]} Kb3 {[%emt 0:01:44]} 66. d6 {[%emt 0:00:19]} Qg7 {[%emt 0:01:22]} 67. Qb5+ {[%emt 0:00:17]} Kc3 {[%emt 0:00:22]} 68. Qxa5+ {[%emt 0:00:05]} Kb3 {[%emt 0:00:25]} 69. Qb5+ {[%emt 0:00:17]} Kc3 {[%emt 0:00:07]} 70. Kh1 {[%emt 0:00:31]} Qd4 {[%emt 0:01:44]} 71. d7 {[%emt 0:00:17]} Kd3 {[%emt 0:00:33]} 72. Qc6 {[%emt 0:00:55]} Kd2 {[%emt 0:01:01]} 73. Qc7 {[%emt 0:00:27]} Ke1 {[%emt 0:00:30]} 74. d8=Q {[%emt 0:00:20]} Qa1 {[%emt 0:00:11]} 75. Qa5+ {[%emt 0:00:07]} 1-0

[Event "German Bundesliga 2024-25"]
[Site "Germany"]
[Date "2024.09.29"]
[Round "2.10"]
[White "Giri, Anish"]
[Black "Predojevic, Borki"]
[Result "1-0"]
[ECO "B42"]
[WhiteElo "2724"]
[BlackElo "2567"]
[Annotator "TA"]
[PlyCount "75"]
[EventDate "2024.09.27"]
[EventType "team-tourn"]
[EventCountry "GER"]
[SourceTitle "playchess.com"]
[Source "ChessBase"]
[SourceQuality "1"]
[WhiteTeam "Duesseldorfer SK"]
[BlackTeam "SK Kirchweyhe"]
[TimeControl "40/5400+30:1800+30"]

{[%evp 16,75,57,49,72,79,63,72,76,72,89,82,100,68,102,87,96,80,127,91,136,112,136,120,157,140,138,131,246,266,475,468,835,810,839,831,819,830,828,813,2256,2091,2937,644,627,633,925,912,927,908,905,904,895,885,885,869,29970,29970,29970,29965,5775,5094]} 1. d4 {[%emt 0:00:04]} e6 {[%emt 0:00:31]} 2. Nf3 {[%emt 0:02:28]} c5 {[%emt 0:05:58]} 3. e4 {[%emt 0:00:51]} cxd4 {[%emt 0:00:34]} 4. Nxd4 {[%emt 0:00:06]} a6 {[%emt 0:01:06]} 5. Bd3 {[%emt 0:00:46]} Nf6 {[%emt 0:02:24]} 6. O-O {[%emt 0:00:45]} d6 {[%emt 0:00:03]} 7. c4 {[%emt 0:00:52]} b6 {[%emt 0:02:48]} 8. Nc3 {[%emt 0:00:19]} Bb7 {[%emt 0:00:06]} 9. f4 {[%emt 0:06:50]} g6 {[%emt 0:06:25]} 10. f5 {[%emt 0:16:51]} gxf5 {[%emt 0:01:10]} 11. exf5 {[%emt 0:00:08]} Rg8 {[%emt 0:00:05] White is better.} 12. Nf3 {[%emt 0:00:26]} (12. fxe6 $2 Rxg2+ 13. Kh1 Rd2+ $19 (13... Rxb2+ $2 14. Nd5 $18) (13... Rxb2+ $2 14. Nd5 $18)) 12... e5 {[%emt 0:00:16]} 13. Bg5 {[%emt 0:00:30][%cal Od3e4] Black must now prevent Be4!} Nbd7 {[%emt 0:02:26] [#] And now ...Bxf3 would win.} 14. Be4 $36 {[%emt 0:00:24][%mdl 2048] White has the initiative.} Qc8 {[%emt 0:03:32]} (14... b5 15. Bxb7) 15. Bxb7 {[%emt 0:05:35]} Qxb7 {[%emt 0:00:07]} 16. Qe2 {[%emt 0:00:05] Dodges Ne4} Be7 {[%emt 0:11:19]} (16... O-O-O $142) 17. a4 {[%emt 0:09:48] White has more active pieces.} O-O-O {[%emt 0:21:10]} 18. b4 {[%emt 0:05:28]} e4 {[%emt 0:06:49]} 19. Bxf6 {[%emt 0:02:19]} Nxf6 {[%emt 0:09:49] [#]} 20. Nd4 {[%emt 0:00:19][%cal Oc3d5]} d5 {[%emt 0:00:49]} 21. Rab1 {[%emt 0:19:51] Hoping for Nxd5.} dxc4 {[%emt 0:13:04]} (21... Kb8 $16 {was called for.}) 22. Qxc4+ $18 {[%emt 0:00:24]} Qc7 $2 {[%emt 0:00:02]} (22... Kb8) 23. Qxa6+ {[%emt 0:02:17]} (23. Nc6 Kb7 24. Nxd8+ Rxd8 25. Qxc7+ (25. Qxf7 $2 Bc5+ 26. bxc5 Qxf7 $19) 25... Kxc7 $18) 23... Kb8 {[%emt 0:00:05] [#]} (23... Qb7 $142 24. Qc4+ Kb8 25. Nc6+ Ka8 26. Nxd8 Rxd8) 24. Ncb5 $1 {[%emt 0:00:42][%cal Of1c1] A dynamic duo of knights.} Qb7 {[%emt 0:00:05] [#]} 25. Nc6+ $1 {[%emt 0:02:22][%mdl 512]} Qxc6 {[%emt 0:00:16]} 26. Qa7+ {[%emt 0:00:02]} Kc8 {[%emt 0:00:05]} 27. Qxe7 {[%emt 0:04:50][%cal Ob1c1] Intending Rbc1! and mate.} Qc2 {[%emt 0:11:46]} 28. g3 {[%emt 0:00:21] White wants to mate with Rbc1.} (28. Qxf6 $2 Qxg2#) 28... Nd5 {[%emt 0:00:31][%cal Bf6d5,Bd5c3,Bc3e2][%mdl 32]} 29. Nd6+ {[%emt 0:03:56]} (29. Qa7 $142 Nf4 30. Rbc1 Rxg3+ 31. Kh1 Rg2 32. Rxc2+ Rxc2 33. Qa8+ (33. Rxf4 $2 {gets mated.} Rd1+) 33... Kd7 34. Qxe4 (34. Qb7+ Ke8 $18)) 29... Rxd6 {[%emt 0:00:16]} 30. Qxd6 {[%emt 0:00:02] White threatens Rfc1 and mate.} Nc3 {[%emt 0:00:09]} 31. Qc6+ {[%emt 0:00:34]} Kb8 {[%emt 0:00:06]} 32. Qxb6+ {[%emt 0:00:03]} Ka8 {[%emt 0:00:06]} 33. Qc6+ {[%emt 0:00:24]} Kb8 {[%emt 0:00:05]} 34. Rbc1 {[%emt 0:03:17]} Ne2+ {[%emt 0:02:21]} 35. Kf2 {[%emt 0:01:04]} Qd2 {[%emt 0:00:46]} 36. Qb6+ {[%emt 0:00:41]} Ka8 {[%emt 0:00:02]} 37. Qa5+ {[%emt 0:00:12]} Kb8 {[%emt 0:00:59]} 38. Qe5+ {[%emt 0:00:05] Weighted Error Value: White=0.33/Black=0.73.  Mistake:       	---       	Black=4      Inaccurate:     	---       	Black=3      OK:         	White=6     	Black=3      Best:        	White=2     	Black=3      Strong:       	White=1     	---        Brilliant:      	White=1     	---} 1-0

[Event "German Bundesliga 2024-25"]
[Site "Germany"]
[Date "2024.09.29"]
[Round "2.11"]
[White "Kadric, Denis"]
[Black "Sindarov, Javokhir"]
[Result "0-1"]
[ECO "B95"]
[WhiteElo "2553"]
[BlackElo "2677"]
[Annotator "RC"]
[PlyCount "92"]
[EventDate "2024.09.27"]
[EventType "team-tourn"]
[EventCountry "GER"]
[SourceTitle "playchess.com"]
[Source "ChessBase"]
[SourceQuality "1"]
[WhiteTeam "SK Kirchweyhe"]
[BlackTeam "Duesseldorfer SK"]
[TimeControl "40/5400+30:1800+30"]

1. e4 {[%emt 0:00:03]} c5 {[%emt 0:00:10]} 2. Nf3 {[%emt 0:00:04]} d6 {[%emt 0:00:07]} 3. d4 {[%emt 0:00:04]} cxd4 {[%emt 0:00:06]} 4. Nxd4 {[%emt 0:00:02]} Nf6 {[%emt 0:00:10]} 5. Nc3 {[%emt 0:00:02]} a6 {[%emt 0:00:11]} 6. Bg5 {[%emt 0:00:07]} e6 {[%emt 0:01:53]} 7. Qf3 {[%emt 0:00:08]} Be7 {[%emt 0:02:26]} 8. Be2 {[%emt 0:02:57]} Nbd7 {[%emt 0:04:03]} 9. a4 {[%emt 0:01:09]} Qc7 {[%emt 0:05:14]} 10. O-O {[%emt 0:00:53]} b6 {[%emt 0:04:31]} 11. Rad1 {[%emt 0:00:21]} Bb7 {[%emt 0:02:33]} 12. Qg3 {[%emt 0:02:12]} O-O {[%emt 0:07:09]} 13. f4 {[%emt 0:02:28]} Kh8 {[%emt 0:10:24]} 14. Bf3 {[%emt 0:00:23]} Ng8 {[%emt 0:06:26]} 15. Rd2 {[%emt 0:10:10]} Rad8 {[%emt 0:03:51]} 16. Rfd1 {[%emt 0:04:13]} Nc5 {[%emt 0:07:30]} 17. b4 {[%emt 0:16:07]} Nd7 {[%emt 0:02:17]} 18. Nde2 {[%emt 0:01:01]} Ndf6 {[%emt 0:06:33]} 19. f5 {[%emt 0:22:27]} e5 {[%emt 0:01:28]} 20. Be3 {[%emt 0:00:59]} Rc8 {[%emt 0:01:24]} 21. Qf2 {[%emt 0:03:12]} Qc4 {[%emt 0:00:50]} 22. Bxb6 {[%emt 0:01:22]} Bxe4 {[%emt 0:00:55]} 23. Bxe4 {[%emt 0:16:04]} Nxe4 {[%emt 0:00:15]} 24. Nxe4 {[%emt 0:00:20]} Qxe4 {[%emt 0:00:09]} 25. c3 {[%emt 0:03:12]} Qc6 {[%emt 0:00:19]} 26. a5 {[%emt 0:02:11]} Nf6 {[%emt 0:00:07]} 27. Qe3 {[%emt 0:00:43]} Qb5 {[%emt 0:01:14]} 28. Qf3 {[%emt 0:01:46]} Rc4 {[%emt 0:01:52]} 29. Qb7 {[%emt 0:05:53]} Re8 {[%emt 0:00:06]} 30. h3 {[%emt 0:00:57]} Kg8 {[%emt 0:00:40]} 31. Qa7 {[%emt 0:01:31]} Bf8 {[%emt 0:01:42]} 32. Bf2 {[%emt 0:01:45]} Rc6 {[%emt 0:07:46]} 33. Qe3 {[%emt 0:00:16]} d5 {[%emt 0:00:48]} 34. Qd3 {[%emt 0:01:45]} Rc4 {[%emt 0:00:18]} 35. Be1 {[%emt 0:00:39]} d4 {[%emt 0:01:32]} 36. cxd4 {[%emt 0:00:06]} e4 {[%emt 0:00:05]} 37. Qg3 {[%emt 0:00:34]} Bxb4 {[%emt 0:03:22]} 38. Ra2 {[%emt 0:00:36]} Bf8 {[%emt 0:00:05]} 39. Qf2 {[%emt 0:00:34]} Qb3 {[%emt 0:00:51]} 40. Rda1 {[%emt 0:00:39]} Rec8 {[%emt 0:01:16]} 41. Qg3 {[%emt 0:03:12]} Qd3 {[%emt 0:14:30]} 42. Rd2 {[%emt 0:09:50]} Qxg3 {[%emt 0:00:00]} 43. Bxg3 {[%emt 0:02:22]} Nd5 {[%emt 0:00:00]} 44. Be1 {[%emt 0:01:44]} Rb8 {[%emt 0:00:00]} 45. Rc1 {[%emt 0:03:35]} Rxc1 {[%emt 0:00:00]} 46. Nxc1 {[%emt 0:00:01]} g6 {[%emt 0:00:00]} 0-1

[Event "German Bundesliga 2024-25"]
[Site "Germany"]
[Date "2024.09.29"]
[Round "2.12"]
[White "Van Foreest, Jorden"]
[Black "Stevic, Hrvoje"]
[Result "1/2-1/2"]
[ECO "C55"]
[WhiteElo "2696"]
[BlackElo "2531"]
[Annotator "TA"]
[PlyCount "71"]
[EventDate "2024.09.27"]
[EventType "team-tourn"]
[EventCountry "GER"]
[SourceTitle "playchess.com"]
[Source "ChessBase"]
[SourceQuality "1"]
[WhiteTeam "Duesseldorfer SK"]
[BlackTeam "SK Kirchweyhe"]
[TimeControl "40/5400+30:1800+30"]

{[%evp 9,71,14,19,13,13,0,14,0,6,0,11,0,35,4,12,0,0,0,15,0,0,-4,0,-10,0,-36,0,-43,-37,-111,-105,-113,-110,-103,-22,-21,-21,-206,-169,-197,-198,-177,-10,-10,-16,-5,-22,-6,-6,-8,-8,-39,0,-81,-18,-21,0,0,0,0,0,0,0,0]} 1. e4 {[%emt 0:00:07]} e5 {[%emt 0:00:20]} 2. Nf3 {[%emt 0:00:10]} Nc6 {[%emt 0:00:08]} 3. Bc4 {[%emt 0:00:07]} Nf6 {[%emt 0:00:15]} 4. d3 {[%emt 0:00:09]} Be7 {[%emt 0:00:19]} 5. Nc3 {[%emt 0:00:27]} O-O {[%emt 0:00:28]} 6. a3 {[%emt 0:00:27]} d6 {[%emt 0:00:46]} 7. Be3 {[%emt 0:00:46]} Be6 {[%emt 0:02:42]} 8. Ng5 {[%emt 0:01:31]} Bxc4 {[%emt 0:06:08]} 9. dxc4 {[%emt 0:00:07]} Qd7 {[%emt 0:00:39]} 10. h3 {[%emt 0:00:07]} (10. O-O {is more complex.} Ng4 11. Bc1 Nd4 12. f3) 10... Nd8 {[%emt 0:00:49]} 11. g4 {[%emt 0:00:28]} Ne6 {[%emt 0:11:36]} 12. Nf3 {[%emt 0:00:11]} Qc6 {[%emt 0:00:17]} 13. Nd2 {[%emt 0:09:22]} Rae8 {[%emt 0:23:17]} 14. Rg1 {[%emt 0:06:42][%cal Og4g5]} a6 {[%emt 0:08:43]} 15. a4 {[%emt 0:02:25]} Nd7 {[%emt 0:04:10]} 16. Nd5 {[%emt 0:03:24]} a5 {[%emt 0:02:19] Prevents Nb4} 17. g5 {[%emt 0:01:45]} Qa6 {[%emt 0:06:35]} 18. b3 {[%emt 0:06:21]} Bd8 $1 {[%emt 0:03:10]} 19. h4 {[%emt 0:06:00]} (19. Nc3 $15) 19... c6 $17 {[%emt 0:00:44]} 20. Nc3 {[%emt 0:00:52]} Bb6 $1 {[%emt 0:04:41]} 21. Nf3 {[%emt 0:01:53] [#] Wards off Bd4} Qa7 {[%emt 0:02:37]} (21... Bc5 $1 $17 {[%cal Rc5b4] White must now prevent ...Bb4.} 22. Bxc5 Ndxc5) 22. Bxb6 $11 {[%emt 0:11:54]} (22. Qxd6 $2 {loses.} Bxe3 23. Nd1 Bxf2+ (23... Bd4 $2 24. Nxd4 Nxd4 25. Qxd7 $19) 24. Nxf2 Qe3+ 25. Kf1 Qxf3 $19) 22... Qxb6 {[%emt 0:00:11]} 23. Qd3 {[%emt 0:06:23]} (23. Qxd6 $11 {and White stays safe.} Rd8 24. Rd1 (24. Nxe5 $2 {is the wrong capture.} Nf6 $19)) 23... Ndc5 {[%emt 0:08:30]} 24. Qe3 {[%emt 0:00:30]} f5 {[%emt 0:00:47] Strongly threatening ...fxe4.} 25. O-O-O {[%emt 0:07:03]} fxe4 $2 {[%emt 0:00:07]} ({Better is} 25... Qb4 $19 {Threatens to win with ...fxe4.} 26. exf5 Rxf5) 26. Nxe4 {[%emt 0:03:57] [#]} Nxb3+ $1 {[%emt 0:04:36]} 27. cxb3 {[%emt 0:00:05]} Qxe3+ {[%emt 0:00:02]} 28. fxe3 {[%emt 0:00:05]} Rxf3 {[%emt 0:00:02]} 29. Nxd6 {[%emt 0:00:06]} Rb8 {[%emt 0:03:00][%cal Oe6c5] next ...Nc5! is good for Black.} 30. Rgf1 {[%emt 0:06:39]} Rxe3 {[%emt 0:06:25][%cal Oe6c5] aiming for ...Nc5!} 31. Nf5 {[%emt 0:05:57] [#]} (31. Rde1 $11 {keeps the balance.} Rxe1+ (31... Rxb3 32. Rxe5 Nf8 33. Re7 $11) 32. Rxe1) 31... Rxb3 {[%emt 0:00:02]} (31... Re4 $1 $17 {...Rf4 would now be deadly.} 32. Nd6 Rxh4) 32. Rd7 $1 {[%emt 0:00:05] The position is equal.} Rc3+ {[%emt 0:01:03]} 33. Kb2 {[%emt 0:00:08]} Rxc4 {[%emt 0:00:04][%cal Oc4f4]} 34. Rxg7+ $1 {[%emt 0:03:07]} Nxg7 {[%emt 0:00:28]} 35. Nh6+ {[%emt 0:00:06]} Kh8 {[%emt 0:00:03]} 36. Nf7+ {[%emt 0:00:06] Weighted Error Value: White=0.26 (precise) /Black=0.23 (precise) .  Loses game:     	White=1     	---        Missed win:     	---       	Black=1      Mistake:       	White=2     	Black=2      Inaccurate:     	White=4     	Black=3      OK:         	White=6     	Black=8      Best:        	White=2     	Black=2      Strong:       	White=2     	Black=2} 1/2-1/2